[Event "SS Manhem Chess Week 2022: Goteborg Open"]
[Site "Schackcentrum, Vegagatan 20, Gothenburg, Sweden"]
[Date "2022.08.14"]
[Round "7.18"]
[White "Jonbrink, Per-Olof"]
[Black "Torres, Lucas"]
[Result "0-1"]
[TimeControl "15 minutes + 5 seconds per move from move one (Round 1 - 4) / 90 minutes + 30 seconds per move from move one (Round 5 - 8)"]
[WhiteFideId "1720163"]
[BlackFideId "1769464"]
[WhiteElo "1728"]
[BlackElo "1331"]

1. e4 {[%clk 01:26:42]} {[%emt 00:04:17]} e5 {[%clk 01:30:49]} {[%emt
00:00:12]} 2. Nf3 {[%clk 01:26:45]} {[%emt 00:00:27]} Nc6 {[%clk 01:30:58]}
{[%emt 00:00:20]} 3. d4 {[%clk 01:26:27]} {[%emt 00:00:47]} exd4 {[%clk
01:30:50]} {[%emt 00:00:39]} 4. Bc4 {[%clk 01:26:25]} {[%emt 00:00:33]} Nf6
{[%clk 01:31:04]} {[%emt 00:00:16]} 5. e5 {[%clk 01:26:39]} {[%emt 00:00:16]}
d5 {[%clk 01:31:25]} {[%emt 00:00:10]} 6. Bb5 {[%clk 01:27:03]} {[%emt
00:00:06]} Ne4 {[%clk 01:31:20]} {[%emt 00:00:34]} 7. Nxd4 {[%clk 01:27:06]}
{[%emt 00:00:27]} Bc5 {[%clk 01:30:50]} {[%emt 00:01:00]} 8. O-O {[%clk
01:24:59]} {[%emt 00:02:37]} Bd7 {[%clk 01:26:07]} {[%emt 00:05:13]} 9. Bxc6
{[%clk 01:24:58]} {[%emt 00:00:30]} bxc6 {[%clk 01:14:48]} {[%emt 00:11:49]} 10.
f3 {[%clk 01:21:25]} {[%emt 00:04:06]} Ng5 {[%clk 01:12:27]} {[%emt 00:02:43]}
11. f4 {[%clk 01:19:52]} {[%emt 00:02:09]} Ne6 {[%clk 01:10:49]} {[%emt
00:02:07]} 12. Be3 {[%clk 01:16:53]} {[%emt 00:03:29]} Bxd4 {[%clk 01:02:45]}
{[%emt 00:08:33]} 13. Bxd4 {[%clk 01:13:48]} {[%emt 00:03:36]} c5 {[%clk
01:02:59]} {[%emt 00:00:15]} 14. Bf2 {[%clk 01:07:23]} {[%emt 00:06:55]} Bb5
{[%clk 01:00:46]} {[%emt 00:02:38]} 15. Re1 {[%clk 01:05:35]} {[%emt 00:02:23]}
Nxf4 {[%clk 00:58:02]} {[%emt 00:03:12]} 16. Nc3 {[%clk 00:59:38]} {[%emt
00:06:29]} Bc6 {[%clk 00:55:29]} {[%emt 00:03:02]} 17. Bxc5 {[%clk 00:55:52]}
{[%emt 00:04:16]} d4 {[%clk 00:49:46]} {[%emt 00:06:09]} 18. Ne4 {[%clk
00:49:14]} {[%emt 00:07:13]} Ne6 {[%clk 00:35:21]} {[%emt 00:14:54]} 19. Ba3
{[%clk 00:39:25]} {[%emt 00:10:19]} Qd5 {[%clk 00:27:23]} {[%emt 00:08:29]} 20.
c4 {[%clk 00:26:58]} {[%emt 00:12:57]} Qxc4 {[%clk 00:22:51]} {[%emt 00:04:58]}
21. Rc1 {[%clk 00:23:17]} {[%emt 00:04:13]} Qd5 {[%clk 00:21:33]} {[%emt
00:01:47]} 22. Qc2 {[%clk 00:19:46]} {[%emt 00:04:02]} Bb7 {[%clk 00:18:06]}
{[%emt 00:03:49]} 23. Qd2 {[%clk 00:09:36]} {[%emt 00:10:50]} d3 {[%clk
00:14:55]} {[%emt 00:03:41]} 24. Qb4 {[%clk 00:08:05]} {[%emt 00:02:01]} Qd4+
{[%clk 00:12:43]} {[%emt 00:02:39]} 25. Qxd4 {[%clk 00:04:00]} {[%emt
00:04:38]} Nxd4 {[%emt 00:00:05]} 26. Rcd1 {[%clk 00:04:18]} {[%emt 00:00:09]}
Ne2+ {[%clk 00:12:15]} {[%emt 00:01:25]} 0-1

[Event "SS Manhem Chess Week 2022: Goteborg Open"]
[Site "Schackcentrum, Vegagatan 20, Gothenburg, Sweden"]
[Date "2022.08.14"]
[Round "7.19"]
[White "Al Saab, Ranny"]
[Black "Hammar, Arvid"]
[Result "1-0"]
[TimeControl "15 minutes + 5 seconds per move from move one (Round 1 - 4) / 90 minutes + 30 seconds per move from move one (Round 5 - 8)"]
[WhiteFideId "1768360"]
[BlackFideId "1735977"]
[WhiteElo "1516"]
[BlackElo "1384"]

1. e4 {[%emt 00:00:20]} e5 {[%clk 01:29:44]} {[%emt 00:00:59]} 2. Nf3 {[%clk
01:31:26]} {[%emt 00:00:02]} Nc6 {[%clk 01:29:45]} {[%emt 00:00:28]} 3. Bc4
{[%clk 01:31:53]} {[%emt 00:00:03]} Nf6 {[%clk 01:30:00]} {[%emt 00:00:14]} 4.
d3 {[%clk 01:32:22]} {[%emt 00:00:02]} d6 {[%clk 01:29:49]} {[%emt 00:00:41]} 5.
Bg5 {[%clk 01:32:41]} {[%emt 00:00:11]} Be7 {[%clk 01:29:48]} {[%emt 00:00:31]}
6. h3 {[%clk 01:32:40]} {[%emt 00:00:30]} Be6 {[%clk 01:29:30]} {[%emt
00:00:48]} 7. Bb3 {[%clk 01:33:09]} {[%emt 00:00:02]} Qd7 {[%clk 01:29:29]}
{[%emt 00:00:29]} 8. Nc3 {[%clk 01:33:32]} {[%emt 00:00:08]} O-O-O {[%clk
01:29:19]} {[%emt 00:00:39]} 9. Nd5 {[%clk 01:31:26]} {[%emt 00:02:37]} Bxd5
{[%clk 01:27:26]} {[%emt 00:02:23]} 10. exd5 {[%clk 01:31:53]} {[%emt
00:00:03]} Nd4 {[%clk 01:27:03]} {[%emt 00:00:52]} 11. c3 {[%emt 00:02:14]} Nf5
{[%clk 01:27:05]} 12. Ba4 {[%clk 01:28:56]} {[%emt 00:02:12]} b5 {[%clk
01:26:59]} {[%emt 00:00:36]} 13. Bb3 {[%clk 01:29:14]} {[%emt 00:00:12]} h6
{[%clk 01:26:13]} {[%emt 00:01:16]} 14. Bxf6 {[%clk 01:29:42]} {[%emt
00:00:03]} Bxf6 {[%clk 01:25:24]} {[%emt 00:01:18]} 15. a4 {[%clk 01:30:06]} a6
{[%clk 01:23:54]} {[%emt 00:02:07]} 16. axb5 {[%clk 01:30:17]} axb5 {[%clk
01:23:54]} {[%emt 00:00:48]} 17. c4 {[%clk 01:28:36]} Nd4 {[%clk 01:22:28]}
{[%emt 00:04:06]} 18. Nxd4 {[%clk 01:27:36]} exd4 {[%clk 01:22:45]} {[%emt
00:01:44]} 19. O-O {[%clk 01:27:53]} Qf5 {[%clk 01:22:21]} {[%emt 00:01:07]} 20.
Ra5 {[%clk 01:26:48]} bxc4 {[%clk 01:21:31]} {[%emt 00:02:55]} 21. Bxc4 {[%clk
01:25:17]} c5 {[%clk 01:20:34]} {[%emt 00:03:29]} 22. Ra7 {[%clk 01:24:46]} Rd7
{[%clk 01:05:30]} {[%emt 00:16:34]} 23. Ra8+ {[%clk 01:25:04]} Kc7 {[%clk
01:05:48]} {[%emt 00:00:25]} 24. Rxh8 {[%clk 01:25:11]} Bd8 {[%clk 01:05:06]}
{[%emt 00:01:34]} 25. Qa4 {[%clk 01:25:30]} Kb8 {[%clk 01:02:41]} {[%emt
00:03:05]} 26. Qb5+ {[%clk 01:25:42]} Ka7 {[%clk 00:59:15]} {[%emt 00:04:16]}
27. Ra1+ {[%clk 01:26:09]} Ba5 {[%clk 00:59:24]} {[%emt 00:00:23]} 28. Rxa5#
{[%emt 00:00:19]} 1-0

[Event "SS Manhem Chess Week 2022: Goteborg Open"]
[Site "Schackcentrum, Vegagatan 20, Gothenburg, Sweden"]
[Date "2022.08.14"]
[Round "8.2"]
[White "Heimisson, Hilmir Freyr"]
[Black "Rasti, Arvin"]
[Result "1-0"]
[TimeControl "15 minutes + 5 seconds per move from move one (Round 1 - 4) / 90 minutes + 30 seconds per move from move one (Round 5 - 8)"]
[WhiteTitle "IM"]
[WhiteFideId "2309998"]
[BlackFideId "1741160"]
[WhiteElo "2323"]
[BlackElo "2156"]

1. c4 {[%clk 01:30:03]} {[%emt 00:00:56]} e6 {[%clk 01:30:38]} {[%emt
00:00:23]} 2. Nc3 {[%clk 01:30:14]} {[%emt 00:00:19]} d5 {[%clk 01:30:40]}
{[%emt 00:00:27]} 3. d4 {[%clk 01:30:36]} {[%emt 00:00:09]} Bb4 {[%clk
01:30:30]} {[%emt 00:00:39]} 4. a3 {[%clk 01:25:54]} {[%emt 00:05:12]} Be7
{[%clk 01:29:04]} {[%emt 00:01:57]} 5. cxd5 {[%clk 01:20:20]} {[%emt 00:06:04]}
exd5 {[%clk 01:27:37]} {[%emt 00:01:57]} 6. Bf4 {[%clk 01:20:28]} {[%emt
00:00:21]} c6 {[%clk 01:27:32]} {[%emt 00:00:35]} 7. Qc2 {[%clk 01:09:27]}
{[%emt 00:11:32]} Bd6 {[%clk 01:20:18]} {[%emt 00:07:43]} 8. Nxd5 {[%clk
00:51:41]} {[%emt 00:18:16]} Be6 {[%clk 01:19:06]} {[%emt 00:01:43]} 9. Bxd6
{[%clk 00:51:04]} {[%emt 00:01:07]} Qxd6 {[%clk 01:19:31]} {[%emt 00:00:05]} 10.
Nc3 {[%clk 00:50:55]} {[%emt 00:00:39]} Qxd4 {[%clk 01:19:23]} {[%emt
00:00:37]} 11. Rd1 {[%clk 00:50:54]} {[%emt 00:00:31]} Qc4 {[%clk 01:15:29]}
{[%emt 00:04:25]} 12. e3 {[%clk 00:47:54]} {[%emt 00:03:30]} Qb3 {[%clk
01:14:46]} {[%emt 00:01:12]} 13. Qd2 {[%clk 00:47:27]} {[%emt 00:00:58]} Nd7
{[%clk 01:13:53]} {[%emt 00:01:22]} 14. Nf3 {[%clk 00:47:44]} {[%emt 00:00:13]}
O-O-O {[%clk 01:02:49]} {[%emt 00:11:34]} 15. Nd4 {[%clk 00:45:14]} {[%emt
00:03:01]} Qb6 {[%clk 01:03:11]} {[%emt 00:00:08]} 16. Nxe6 {[%clk 00:43:57]}
{[%emt 00:01:47]} fxe6 {[%clk 01:03:39]} {[%emt 00:00:02]} 17. Bc4 {[%clk
00:43:59]} {[%emt 00:00:28]} e5 {[%clk 01:02:29]} {[%emt 00:01:40]} 18. O-O
{[%clk 00:43:30]} {[%emt 00:00:58]} Ngf6 {[%clk 01:02:38]} {[%emt 00:00:21]} 19.
b4 {[%clk 00:42:07]} {[%emt 00:01:53]} Qc7 {[%clk 01:01:25]} {[%emt 00:01:42]}
20. Qc2 {[%clk 00:36:08]} {[%emt 00:06:29]} Nb6 {[%clk 01:00:38]} {[%emt
00:01:18]} 21. Be2 {[%clk 00:33:13]} {[%emt 00:03:25]} Rxd1 {[%clk 00:54:41]}
{[%emt 00:06:28]} 22. Rxd1 {[%clk 00:33:35]} {[%emt 00:00:08]} Nbd5 {[%clk
00:54:52]} {[%emt 00:00:18]} 23. Na4 {[%clk 00:33:07]} {[%emt 00:00:58]} Ne7
{[%clk 00:51:16]} {[%emt 00:04:06]} 24. Nc5 {[%clk 00:31:44]} {[%emt 00:01:53]}
Rd8 {[%clk 00:44:59]} {[%emt 00:06:47]} 25. Ne6 {[%clk 00:28:13]} {[%emt
00:04:01]} Rxd1+ {[%clk 00:45:23]} {[%emt 00:00:06]} 26. Bxd1 {[%clk 00:27:30]}
{[%emt 00:01:13]} Qd7 {[%clk 00:45:11]} {[%emt 00:00:42]} 27. Nxg7 {[%clk
00:26:29]} {[%emt 00:01:31]} e4 {[%clk 00:42:40]} {[%emt 00:03:02]} 28. Nh5
{[%clk 00:25:30]} {[%emt 00:01:29]} Nxh5 {[%clk 00:41:24]} {[%emt 00:01:46]} 29.
Bxh5 {[%clk 00:25:56]} {[%emt 00:00:06]} Qf5 {[%clk 00:39:20]} {[%emt
00:02:32]} 30. Qd1 {[%clk 00:24:21]} {[%emt 00:02:06]} Kc7 {[%clk 00:38:30]}
{[%emt 00:01:20]} 31. Bg4 {[%clk 00:23:35]} {[%emt 00:01:15]} Qd5 {[%clk
00:38:48]} {[%emt 00:00:12]} 32. Qa1 {[%clk 00:22:42]} {[%emt 00:01:22]} h5
{[%clk 00:37:53]} {[%emt 00:01:26]} 33. Be2 {[%clk 00:22:41]} {[%emt 00:00:30]}
c5 {[%clk 00:27:35]} {[%emt 00:10:49]} 34. Qg7 {[%clk 00:20:20]} {[%emt
00:02:51]} Qd6 {[%clk 00:27:47]} {[%emt 00:00:18]} 35. Qc3 {[%clk 00:17:58]}
{[%emt 00:02:52]} Nd5 {[%clk 00:25:16]} {[%emt 00:03:01]} 36. Qc2 {[%clk
00:17:22]} {[%emt 00:01:05]} Nf6 {[%clk 00:25:14]} {[%emt 00:00:32]} 37. bxc5
{[%clk 00:14:54]} {[%emt 00:02:58]} Qe5 {[%clk 00:24:31]} {[%emt 00:01:13]} 38.
Qc1 {[%clk 00:11:44]} {[%emt 00:03:40]} Ng4 {[%clk 00:23:59]} {[%emt 00:01:02]}
39. g3 {[%clk 00:11:31]} {[%emt 00:00:44]} Qf5 {[%clk 00:23:37]} {[%emt
00:00:51]} 40. Bxg4 {[%clk 00:09:05]} {[%emt 00:02:57]} Qxg4 {[%clk 00:23:12]}
{[%emt 00:00:54]} 41. h4 {[%clk 00:07:40]} {[%emt 00:01:56]} Qf3 {[%clk
00:23:20]} {[%emt 00:00:22]} 42. Qd2 {[%clk 00:06:44]} {[%emt 00:01:26]} Qf6
{[%clk 00:22:36]} {[%emt 00:01:14]} 43. Qa5+ {[%clk 00:06:56]} {[%emt
00:00:18]} Kb8 {[%clk 00:20:31]} {[%emt 00:02:35]} 44. Qb4 {[%clk 00:07:10]}
{[%emt 00:00:17]} 1-0

[Event "SS Manhem Chess Week 2022: Goteborg Open"]
[Site "Schackcentrum, Vegagatan 20, Gothenburg, Sweden"]
[Date "2022.08.14"]
[Round "8.4"]
[White "Wahlstrom, Lennart"]
[Black "Johansson, William"]
[Result "0-1"]
[TimeControl "15 minutes + 5 seconds per move from move one (Round 1 - 4) / 90 minutes + 30 seconds per move from move one (Round 5 - 8)"]
[WhiteFideId "1706829"]
[BlackFideId "1744070"]
[WhiteElo "2115"]
[BlackElo "2015"]

1. e4 {[%clk 01:28:50]} {[%emt 00:00:09]} d6 {[%clk 01:30:45]} {[%emt
00:00:16]} 2. d4 {[%clk 01:29:01]} {[%emt 00:00:18]} Nf6 {[%clk 01:31:09]}
{[%emt 00:00:06]} 3. Nc3 {[%clk 01:29:17]} {[%emt 00:00:14]} Nbd7 {[%clk
01:31:32]} {[%emt 00:00:07]} 4. Nf3 {[%clk 01:29:13]} {[%emt 00:00:34]} e5
{[%clk 01:31:55]} {[%emt 00:00:08]} 5. Be2 {[%clk 01:28:26]} {[%emt 00:01:17]}
Be7 {[%clk 01:32:16]} {[%emt 00:00:08]} 6. O-O {[%clk 01:27:30]} {[%emt
00:01:25]} c6 {[%clk 01:32:32]} {[%emt 00:00:15]} 7. a4 {[%clk 01:21:42]}
{[%emt 00:06:18]} Qc7 {[%clk 01:32:50]} {[%emt 00:00:12]} 8. a5 {[%clk
01:20:51]} {[%emt 00:01:22]} Nf8 {[%clk 01:28:21]} {[%emt 00:04:59]} 9. h3
{[%clk 01:13:19]} {[%emt 00:08:01]} h6 {[%clk 01:27:05]} {[%emt 00:01:46]} 10.
Be3 {[%clk 01:09:16]} {[%emt 00:04:34]} g5 {[%clk 01:26:20]} {[%emt 00:01:14]}
11. Nh2 {[%clk 01:04:53]} {[%emt 00:04:52]} Ne6 {[%clk 01:21:10]} {[%emt
00:05:40]} 12. dxe5 {[%clk 01:03:02]} {[%emt 00:02:20]} dxe5 {[%clk 01:20:41]}
{[%emt 00:00:59]} 13. Ng4 {[%clk 00:56:42]} {[%emt 00:06:50]} Nd7 {[%clk
01:01:59]} {[%emt 00:19:13]} 14. Bc4 {[%clk 00:46:19]} {[%emt 00:10:52]} Nf4
{[%clk 01:00:04]} {[%emt 00:02:25]} 15. Bxf4 {[%clk 00:45:24]} {[%emt
00:01:25]} gxf4 {[%clk 00:55:12]} {[%emt 00:05:23]} 16. Qe2 {[%clk 00:30:36]}
{[%emt 00:15:18]} Nc5 {[%clk 00:49:13]} {[%emt 00:06:29]} 17. Nh2 {[%clk
00:23:34]} {[%emt 00:07:31]} Ne6 {[%clk 00:40:53]} {[%emt 00:08:51]} 18. Qh5
{[%clk 00:16:49]} {[%emt 00:07:15]} Ng5 {[%clk 00:29:16]} {[%emt 00:12:07]} 19.
Nf3 {[%clk 00:14:50]} {[%emt 00:02:29]} Bf6 {[%clk 00:26:28]} {[%emt 00:03:18]}
20. Rfd1 {[%clk 00:10:39]} {[%emt 00:04:41]} Be6 {[%clk 00:20:11]} {[%emt
00:06:47]} 21. Bxe6 {[%clk 00:09:39]} {[%emt 00:01:30]} Nxe6 {[%clk 00:20:38]}
{[%emt 00:00:03]} 22. Rd2 {[%clk 00:04:45]} {[%emt 00:05:23]} Ng7 {[%clk
00:19:19]} {[%emt 00:01:50]} 23. Rdd1 {[%emt 00:02:23]} Ne6 {[%emt 00:00:01]}
24. Qf5 {[%clk 00:02:19]} 0-1

[Event "SS Manhem Chess Week 2022: Goteborg Open"]
[Site "Schackcentrum, Vegagatan 20, Gothenburg, Sweden"]
[Date "2022.08.14"]
[Round "8.5"]
[White "Pettersson, Anders"]
[Black "Ottgard, Andreas"]
[Result "1-0"]
[TimeControl "15 minutes + 5 seconds per move from move one (Round 1 - 4) / 90 minutes + 30 seconds per move from move one (Round 5 - 8)"]
[WhiteFideId "1715143"]
[BlackFideId "1730592"]
[WhiteElo "2042"]
[BlackElo "1883"]

1. d4 {[%clk 01:30:56]} {[%emt 00:00:03]} Nf6 {[%clk 01:30:50]} {[%emt
00:00:10]} 2. c4 {[%clk 01:31:21]} {[%emt 00:00:06]} c5 {[%clk 01:31:14]}
{[%emt 00:00:06]} 3. d5 {[%clk 01:31:47]} {[%emt 00:00:04]} e6 {[%clk
01:31:21]} {[%emt 00:00:23]} 4. Nc3 {[%clk 01:32:12]} {[%emt 00:00:05]} exd5
{[%clk 01:31:44]} {[%emt 00:00:07]} 5. cxd5 {[%clk 01:32:37]} {[%emt 00:00:05]}
d6 {[%clk 01:32:04]} {[%emt 00:00:10]} 6. e4 {[%clk 01:33:02]} {[%emt
00:00:05]} g6 {[%clk 01:32:27]} {[%emt 00:00:07]} 7. h3 {[%clk 01:33:27]}
{[%emt 00:00:05]} Bg7 {[%clk 01:32:47]} {[%emt 00:00:10]} 8. Nf3 {[%clk
01:33:52]} {[%emt 00:00:06]} O-O {[%clk 01:32:58]} {[%emt 00:00:18]} 9. Bd3
{[%clk 01:34:19]} {[%emt 00:00:03]} Nh5 {[%clk 01:31:39]} {[%emt 00:01:50]} 10.
g4 {[%clk 01:28:44]} {[%emt 00:06:05]} Nf6 {[%clk 01:31:06]} {[%emt 00:01:02]}
11. Bg5 {[%clk 01:28:49]} {[%emt 00:00:25]} Re8 {[%clk 01:26:54]} {[%emt
00:04:42]} 12. Qc2 {[%clk 01:24:57]} {[%emt 00:04:22]} Na6 {[%clk 01:22:13]}
{[%emt 00:05:11]} 13. Bxa6 {[%clk 01:20:56]} {[%emt 00:04:32]} bxa6 {[%clk
01:22:00]} {[%emt 00:00:43]} 14. Nd2 {[%clk 01:21:18]} {[%emt 00:00:08]} Rb8
{[%clk 01:12:13]} {[%emt 00:10:17]} 15. O-O-O {[%clk 01:19:43]} {[%emt
00:02:05]} Qc7 {[%clk 01:09:49]} {[%emt 00:02:54]} 16. f4 {[%clk 01:14:42]}
{[%emt 00:05:31]} Nd7 {[%clk 01:00:20]} {[%emt 00:09:59]} 17. e5 {[%clk
01:02:52]} {[%emt 00:12:20]} dxe5 {[%clk 00:57:08]} {[%emt 00:03:41]} 18. f5
{[%clk 01:03:17]} {[%emt 00:00:05]} f6 {[%clk 00:40:23]} {[%emt 00:17:15]} 19.
Be3 {[%clk 01:01:09]} {[%emt 00:02:38]} g5 {[%clk 00:38:20]} {[%emt 00:02:32]}
20. Nde4 {[%clk 00:58:10]} {[%emt 00:03:29]} Bb7 {[%clk 00:30:10]} {[%emt
00:08:39]} 21. h4 {[%clk 00:56:19]} {[%emt 00:02:23]} h6 {[%clk 00:30:20]}
{[%emt 00:00:20]} 22. hxg5 {[%clk 00:49:21]} {[%emt 00:07:28]} hxg5 {[%clk
00:30:08]} {[%emt 00:00:41]} 23. Qh2 {[%clk 00:44:56]} {[%emt 00:04:55]} Qb6
{[%clk 00:26:00]} {[%emt 00:04:39]} 24. Rd2 {[%clk 00:43:18]} {[%emt 00:02:06]}
Re7 {[%clk 00:20:44]} {[%emt 00:05:46]} 25. Qh7+ {[%clk 00:39:11]} {[%emt
00:04:37]} Kf8 {[%clk 00:20:58]} {[%emt 00:00:16]} 26. Qg6 {[%clk 00:39:37]}
{[%emt 00:00:05]} Rf7 {[%clk 00:19:51]} {[%emt 00:01:37]} 27. Rh7 {[%clk
00:39:08]} {[%emt 00:00:59]} Qb4 {[%clk 00:16:46]} {[%emt 00:03:35]} 28. Rdh2
{[%clk 00:31:26]} {[%emt 00:08:11]} Bxd5 {[%clk 00:16:32]} {[%emt 00:00:45]} 29.
Rh8+ {[%clk 00:31:39]} {[%emt 00:00:17]} 1-0